[Event "Live Chess"]
[Site "Chess.com"]
[Date "2023.05.20"]
[Round "-"]
[White "whitedjohn"]
[Black "bristolunichess"]
[Result "1-0"]
[WhiteElo "1669"]
[BlackElo "1812"]
[TimeControl "300"]
[EndTime "10:28:14 PDT"]
[Termination "whitedjohn won by checkmate"]

1. e4 {[%clk 0:04:57]} 1... c5 {[%clk 0:04:53.6]} 2. Nf3 {[%clk 0:04:55.1]} 2...
Nc6 {[%clk 0:04:52.8]} 3. d4 {[%clk 0:04:54.3]} 3... cxd4 {[%clk 0:04:51.8]} 4.
Nxd4 {[%clk 0:04:51.6]} 4... d6 {[%clk 0:04:50.3]} 5. Nc3 {[%clk 0:04:49.5]}
5... Nf6 {[%clk 0:04:49]} 6. Bc4 {[%clk 0:04:47.5]} 6... Bd7 {[%clk 0:04:31.5]}
7. Be3 {[%clk 0:04:44.3]} 7... Ng4 {[%clk 0:04:25.6]} 8. Nxc6 {[%clk 0:04:28.9]}
8... Nxe3 {[%clk 0:04:07.5]} 9. Nxd8 {[%clk 0:04:26.6]} 9... Nxd1 {[%clk
0:04:06.7]} 10. Rxd1 {[%clk 0:04:23.1]} 10... Rxd8 {[%clk 0:04:03.7]} 11. O-O
{[%clk 0:04:17.4]} 11... a6 {[%clk 0:03:52.5]} 12. f4 {[%clk 0:04:09.1]} 12...
g6 {[%clk 0:03:39.8]} 13. e5 {[%clk 0:03:59.7]} 13... dxe5 {[%clk 0:03:35.1]}
14. fxe5 {[%clk 0:03:57.5]} 14... e6 {[%clk 0:03:29.8]} 15. Ne4 {[%clk
0:03:53.1]} 15... Be7 {[%clk 0:03:21.5]} 16. Nd6+ {[%clk 0:03:46.3]} 16... Bxd6
{[%clk 0:03:20.2]} 17. Rxd6 {[%clk 0:03:44.5]} 17... O-O {[%clk 0:03:18.9]} 18.
Rfd1 {[%clk 0:03:42.7]} 18... Bb5 {[%clk 0:02:43.3]} 19. Rxd8 {[%clk 0:03:37.6]}
19... Bxc4 {[%clk 0:02:42.5]} 20. Rxf8+ {[%clk 0:03:34.6]} 20... Kxf8 {[%clk
0:02:41.5]} 21. b3 {[%clk 0:03:31.6]} 21... Bd5 {[%clk 0:02:36.9]} 22. c4 {[%clk
0:03:28.1]} 22... Bc6 {[%clk 0:02:36.2]} 23. Rd8+ {[%clk 0:03:23.8]} 23... Ke7
{[%clk 0:02:31.5]} 24. Rh8 {[%clk 0:03:16.5]} 24... h5 {[%clk 0:02:29.4]} 25. g3
{[%clk 0:03:13.4]} 25... a5 {[%clk 0:02:16]} 26. Kf2 {[%clk 0:03:10.7]} 26... a4
{[%clk 0:02:14.3]} 27. Ke3 {[%clk 0:03:05.8]} 27... axb3 {[%clk 0:02:12.7]} 28.
axb3 {[%clk 0:03:04.1]} 28... Be8 {[%clk 0:02:02.8]} 29. Kf4 {[%clk 0:02:58.4]}
29... f6 {[%clk 0:01:54.5]} 30. exf6+ {[%clk 0:02:52.3]} 30... Kf7 {[%clk
0:01:40.3]} 31. Rxe8 {[%clk 0:02:50]} 31... Kxe8 {[%clk 0:01:38.9]} 32. Ke5
{[%clk 0:02:49.2]} 32... Kf7 {[%clk 0:01:37.7]} 33. h4 {[%clk 0:02:44]} 33... b6
{[%clk 0:01:32.5]} 34. b4 {[%clk 0:02:41.9]} 34... g5 {[%clk 0:01:27.4]} 35.
hxg5 {[%clk 0:02:38.9]} 35... Kg6 {[%clk 0:01:22.5]} 36. Kxe6 {[%clk 0:02:35.9]}
36... Kxg5 {[%clk 0:01:21.6]} 37. f7 {[%clk 0:02:34.7]} 37... Kg4 {[%clk
0:01:21.2]} 38. f8=Q {[%clk 0:02:32.7]} 38... Kxg3 {[%clk 0:01:20.8]} 39. Qg7+
{[%clk 0:02:30.9]} 39... Kh3 {[%clk 0:01:19.6]} 40. Qh6 {[%clk 0:02:27.1]} 40...
h4 {[%clk 0:01:18.9]} 41. Qxh4+ {[%clk 0:02:25.2]} 41... Kxh4 {[%clk 0:01:18]}
42. c5 {[%clk 0:02:23.4]} 42... bxc5 {[%clk 0:01:16.4]} 43. bxc5 {[%clk
0:02:20.1]} 43... Kg4 {[%clk 0:01:16]} 44. c6 {[%clk 0:02:18.4]} 44... Kf4
{[%clk 0:01:15.6]} 45. c7 {[%clk 0:02:16.9]} 45... Ke4 {[%clk 0:01:15.5]} 46.
c8=R {[%clk 0:02:13.8]} 46... Kd4 {[%clk 0:01:15]} 47. Rc6 {[%clk 0:02:08.7]}
47... Ke4 {[%clk 0:01:13.9]} 48. Rd6 {[%clk 0:02:06.2]} 48... Kf4 {[%clk
0:01:12.9]} 49. Rd5 {[%clk 0:02:04.6]} 49... Ke4 {[%clk 0:01:12.5]} 50. Kd6
{[%clk 0:02:01.1]} 50... Kf4 {[%clk 0:01:12.1]} 51. Re5 {[%clk 0:01:59.7]} 51...
Kf3 {[%clk 0:01:10.7]} 52. Kd5 {[%clk 0:01:58]} 52... Kf4 {[%clk 0:01:10.2]} 53.
Kd4 {[%clk 0:01:56.4]} 53... Kf3 {[%clk 0:01:09.1]} 54. Re4 {[%clk 0:01:54.9]}
54... Kf2 {[%clk 0:01:08.3]} 55. Re3 {[%clk 0:01:53.3]} 55... Kf1 {[%clk
0:01:07.2]} 56. Ke4 {[%clk 0:01:49.8]} 56... Kf2 {[%clk 0:01:06.6]} 57. Kf4
{[%clk 0:01:46.8]} 57... Kg2 {[%clk 0:01:05.5]} 58. Rf3 {[%clk 0:01:43.2]} 58...
Kh2 {[%clk 0:01:04.2]} 59. Kg4 {[%clk 0:01:38.7]} 59... Kg2 {[%clk 0:01:03.7]}
60. Kf4 {[%clk 0:01:36.8]} 60... Kh2 {[%clk 0:01:02.2]} 61. Rf2+ {[%clk
0:01:33.8]} 61... Kg1 {[%clk 0:01:00.9]} 62. Kf3 {[%clk 0:01:30.8]} 62... Kh1
{[%clk 0:00:59.6]} 63. Rd2 {[%clk 0:01:25.6]} 63... Kg1 {[%clk 0:00:57.7]} 64.
Rc2 {[%clk 0:01:20.7]} 64... Kh1 {[%clk 0:00:56.6]} 65. Kg3 {[%clk 0:01:19.2]}
65... Kg1 {[%clk 0:00:55.6]} 66. Rc1# {[%clk 0:01:17.6]} 1-0

[Event "Live Chess"]
[Site "Chess.com"]
[Date "2023.05.20"]
[Round "-"]
[White "FlyingChessKestrel13"]
[Black "Leonid_Starozhilov"]
[Result "0-1"]
[WhiteElo "2120"]
[BlackElo "2658"]
[TimeControl "300"]
[EndTime "10:28:23 PDT"]
[Termination "Leonid_Starozhilov won by checkmate"]

1. e4 {[%clk 0:04:57.4]} 1... e5 {[%clk 0:04:58.2]} 2. Nf3 {[%clk 0:04:54.6]}
2... Nc6 {[%clk 0:04:57.4]} 3. Bb5 {[%clk 0:04:52.9]} 3... f5 {[%clk 0:04:54.7]}
4. d3 {[%clk 0:04:49.9]} 4... Nf6 {[%clk 0:04:52.7]} 5. exf5 {[%clk 0:04:46.8]}
5... d6 {[%clk 0:04:46.9]} 6. O-O {[%clk 0:04:41.7]} 6... Bxf5 {[%clk
0:04:44.8]} 7. Re1 {[%clk 0:04:40.5]} 7... Be7 {[%clk 0:04:43.2]} 8. Bxc6+
{[%clk 0:04:38]} 8... bxc6 {[%clk 0:04:41.8]} 9. d4 {[%clk 0:04:34.4]} 9... e4
{[%clk 0:04:40.2]} 10. Ng5 {[%clk 0:04:33.2]} 10... d5 {[%clk 0:04:38.6]} 11. f3
{[%clk 0:04:25.5]} 11... O-O {[%clk 0:04:35.3]} 12. fxe4 {[%clk 0:04:23.9]}
12... Nxe4 {[%clk 0:04:32.8]} 13. Nxe4 {[%clk 0:04:23.2]} 13... Bxe4 {[%clk
0:04:32.3]} 14. Nc3 {[%clk 0:04:21.4]} 14... Bb4 {[%clk 0:04:24]} 15. Re3 {[%clk
0:04:09.6]} 15... Bxc3 {[%clk 0:04:21.4]} 16. bxc3 {[%clk 0:04:07.9]} 16... Qd6
{[%clk 0:04:13.9]} 17. Rg3 {[%clk 0:04:04.8]} 17... Rf6 {[%clk 0:04:11.5]} 18.
Bg5 {[%clk 0:04:01.5]} 18... Rg6 {[%clk 0:04:09.5]} 19. Qe2 {[%clk 0:03:54.3]}
19... Rf8 {[%clk 0:04:04.2]} 20. Rf1 {[%clk 0:03:51.9]} 20... Rxf1+ {[%clk
0:04:01.8]} 21. Qxf1 {[%clk 0:03:47.6]} 21... Bxc2 {[%clk 0:03:45.4]} 22. Qf2
{[%clk 0:02:48]} 22... Be4 {[%clk 0:03:38.8]} 23. Bf4 {[%clk 0:02:41.6]} 23...
Qa3 {[%clk 0:03:29]} 24. Rxg6 {[%clk 0:02:29.8]} 24... hxg6 {[%clk 0:03:23.7]}
25. Qd2 {[%clk 0:02:27.9]} 25... Bb1 {[%clk 0:03:10.9]} 26. Qe3 {[%clk
0:02:19.2]} 26... Be4 {[%clk 0:02:58.7]} 27. Qd2 {[%clk 0:02:17]} 27... Qe7
{[%clk 0:02:53.8]} 28. g3 {[%clk 0:02:13]} 28... c5 {[%clk 0:02:52]} 29. Qb2
{[%clk 0:02:09.1]} 29... cxd4 {[%clk 0:02:47.6]} 30. cxd4 {[%clk 0:02:07.9]}
30... c5 {[%clk 0:02:44.6]} 31. Qb8+ {[%clk 0:02:00.9]} 31... Kh7 {[%clk
0:02:43.2]} 32. Bd6 {[%clk 0:01:59.8]} 32... Qf7 {[%clk 0:02:36.5]} 33. Qd8
{[%clk 0:01:46.6]} 33... g5 {[%clk 0:02:17.5]} 34. Qxg5 {[%clk 0:01:43.4]} 34...
Qf3 {[%clk 0:02:16.3]} 35. Qd2 {[%clk 0:01:19.8]} 35... Qh1+ {[%clk 0:02:06.9]}
36. Kf2 {[%clk 0:01:19]} 36... Qxh2+ {[%clk 0:02:02.6]} 37. Ke1 {[%clk
0:01:18.2]} 37... Qg1+ {[%clk 0:01:59.6]} 38. Ke2 {[%clk 0:01:16.3]} 38... cxd4
{[%clk 0:01:54.3]} 39. Qe1 {[%clk 0:01:12.3]} 39... Qg2+ {[%clk 0:01:39.6]} 40.
Qf2 {[%clk 0:01:10.8]} 40... d3+ {[%clk 0:01:29.1]} 41. Ke1 {[%clk 0:01:07.9]}
41... Qh1+ {[%clk 0:01:13.9]} 42. Kd2 {[%clk 0:00:59.7]} 42... Qa1 {[%clk
0:01:12.5]} 43. Ke3 {[%clk 0:00:34.4]} 43... Qc1+ {[%clk 0:00:59.7]} 44. Qd2
{[%clk 0:00:30.7]} 44... Qc6 {[%clk 0:00:54.5]} 45. Bf4 {[%clk 0:00:26.4]} 45...
Qc5# {[%clk 0:00:53.3]} 0-1

[Event "Live Chess"]
[Site "Chess.com"]
[Date "2023.05.20"]
[Round "-"]
[White "LiamClery2020"]
[Black "Fazer180"]
[Result "1-0"]
[WhiteElo "2081"]
[BlackElo "1698"]
[TimeControl "300"]
[EndTime "10:28:25 PDT"]
[Termination "LiamClery2020 won by resignation"]

1. e4 {[%clk 0:04:59.6]} 1... e6 {[%clk 0:04:59.4]} 2. d4 {[%clk 0:04:58]} 2...
d5 {[%clk 0:04:59.3]} 3. Nd2 {[%clk 0:04:57.4]} 3... c5 {[%clk 0:04:55.7]} 4. c3
{[%clk 0:04:55.8]} 4... Nc6 {[%clk 0:04:51.2]} 5. Ngf3 {[%clk 0:04:54]} 5...
cxd4 {[%clk 0:04:44.4]} 6. cxd4 {[%clk 0:04:53]} 6... Nf6 {[%clk 0:04:41]} 7. e5
{[%clk 0:04:52.1]} 7... Nd7 {[%clk 0:04:40]} 8. Bd3 {[%clk 0:04:50.8]} 8... Qb6
{[%clk 0:04:36.9]} 9. O-O {[%clk 0:04:49.1]} 9... Nxd4 {[%clk 0:04:30.3]} 10.
Nxd4 {[%clk 0:04:47.8]} 10... Qxd4 {[%clk 0:04:29.4]} 11. Nf3 {[%clk 0:04:47.7]}
11... Qb6 {[%clk 0:04:27.3]} 12. Qc2 {[%clk 0:04:46.9]} 12... Be7 {[%clk
0:04:20.4]} 13. Bxh7 {[%clk 0:04:44.7]} 13... g6 {[%clk 0:04:11.9]} 14. Bxg6
{[%clk 0:04:43.3]} 14... fxg6 {[%clk 0:04:11.2]} 15. Qxg6+ {[%clk 0:04:43.2]}
15... Kf8 {[%clk 0:04:04.1]} 16. Bh6+ {[%clk 0:04:42.5]} 16... Rxh6 {[%clk
0:03:54.3]} 17. Qxh6+ {[%clk 0:04:42.4]} 17... Kg8 {[%clk 0:03:53.5]} 18. Qg6+
{[%clk 0:04:40.5]} 18... Kf8 {[%clk 0:03:49.5]} 19. Rad1 {[%clk 0:04:31]} 19...
Nc5 {[%clk 0:03:42.3]} 20. Rd4 {[%clk 0:04:29.2]} 20... Ne4 {[%clk 0:03:40.7]}
21. Rfd1 {[%clk 0:04:08.9]} 21... Qxb2 {[%clk 0:03:35]} 22. Qh6+ {[%clk
0:03:51.6]} 22... Kg8 {[%clk 0:03:21.4]} 23. Rxe4 {[%clk 0:03:46.6]} 23... dxe4
{[%clk 0:03:17.5]} 24. Ng5 {[%clk 0:03:42.3]} 24... Qxe5 {[%clk 0:03:10.9]} 25.
Qh7+ {[%clk 0:03:41]} 1-0

[Event "Live Chess"]
[Site "Chess.com"]
[Date "2023.05.20"]
[Round "-"]
[White "martinsmartin63"]
[Black "lateforthesky"]
[Result "0-1"]
[WhiteElo "762"]
[BlackElo "2088"]
[TimeControl "300"]
[EndTime "10:28:30 PDT"]
[Termination "lateforthesky won by resignation"]

1. Nf3 {[%clk 0:04:57.2]} 1... Nf6 {[%clk 0:04:58.4]} 2. d4 {[%clk 0:04:52.8]}
2... g6 {[%clk 0:04:56.9]} 3. Bf4 {[%clk 0:04:48.4]} 3... Bg7 {[%clk 0:04:56]}
4. e3 {[%clk 0:04:45.7]} 4... O-O {[%clk 0:04:54.7]} 5. Nc3 {[%clk 0:04:42.8]}
5... d5 {[%clk 0:04:53.2]} 6. Be2 {[%clk 0:04:35]} 6... b6 {[%clk 0:04:51.6]} 7.
Ne5 {[%clk 0:04:30.6]} 7... c5 {[%clk 0:04:49]} 8. Nxg6 {[%clk 0:04:24.9]} 8...
hxg6 {[%clk 0:04:41.9]} 9. Bg5 {[%clk 0:04:15.5]} 9... Nc6 {[%clk 0:04:39.2]}
10. Bxf6 {[%clk 0:04:13.4]} 10... exf6 {[%clk 0:04:37.5]} 11. Bg4 {[%clk
0:04:07.1]} 11... cxd4 {[%clk 0:04:30.5]} 12. Bxc8 {[%clk 0:04:04.1]} 12... Rxc8
{[%clk 0:04:29.4]} 13. exd4 {[%clk 0:04:01]} 13... Re8+ {[%clk 0:04:27.8]} 14.
Kf1 {[%clk 0:03:57.6]} 14... f5 {[%clk 0:04:25.8]} 15. g3 {[%clk 0:03:53.7]}
15... Nxd4 {[%clk 0:04:23.1]} 16. Kg2 {[%clk 0:03:50.5]} 16... Qd6 {[%clk
0:03:43.4]} 17. Re1 {[%clk 0:03:44.1]} 17... Rxe1 {[%clk 0:03:36.5]} 18. Qxe1
{[%clk 0:03:41.1]} 18... Nxc2 {[%clk 0:03:32.7]} 19. Qc1 {[%clk 0:03:30.9]}
19... Nxa1 {[%clk 0:03:31.5]} 20. Qxa1 {[%clk 0:03:28.2]} 20... d4 {[%clk
0:03:30.2]} 21. Nb5 {[%clk 0:03:22.6]} 21... Qd5+ {[%clk 0:03:27.9]} 0-1

[Event "Live Chess"]
[Site "Chess.com"]
[Date "2023.05.20"]
[Round "-"]
[White "Albul"]
[Black "NAZRIZ1977"]
[Result "0-1"]
[WhiteElo "2182"]
[BlackElo "2143"]
[TimeControl "300"]
[EndTime "10:28:32 PDT"]
[Termination "NAZRIZ1977 won by resignation"]

1. e4 {[%clk 0:04:58.1]} 1... c5 {[%clk 0:04:58.6]} 2. Nc3 {[%clk 0:04:56.4]}
2... Nc6 {[%clk 0:04:57.7]} 3. d3 {[%clk 0:04:55.1]} 3... g6 {[%clk 0:04:57.1]}
4. Be3 {[%clk 0:04:53.9]} 4... Bg7 {[%clk 0:04:56.8]} 5. Qd2 {[%clk 0:04:51.6]}
5... d6 {[%clk 0:04:55.6]} 6. g3 {[%clk 0:04:50.5]} 6... Nf6 {[%clk 0:04:54.3]}
7. Bh6 {[%clk 0:04:48.2]} 7... Bxh6 {[%clk 0:04:52.2]} 8. Qxh6 {[%clk
0:04:46.5]} 8... Nd4 {[%clk 0:04:52.1]} 9. O-O-O {[%clk 0:04:42]} 9... b5 {[%clk
0:04:48.7]} 10. Bg2 {[%clk 0:04:39.7]} 10... Rb8 {[%clk 0:04:45.9]} 11. f4
{[%clk 0:04:00.2]} 11... Ng4 {[%clk 0:04:40.5]} 12. Qg7 {[%clk 0:03:57.3]} 12...
Rf8 {[%clk 0:04:37.6]} 13. Rf1 {[%clk 0:03:47.4]} 13... h5 {[%clk 0:04:33.5]}
14. h3 {[%clk 0:03:38.8]} 14... Ne3 {[%clk 0:04:32.1]} 15. Rf2 {[%clk
0:03:37.3]} 15... Nxg2 {[%clk 0:04:31.2]} 16. Rxg2 {[%clk 0:03:35.9]} 16... b4
{[%clk 0:04:29.8]} 17. Nd5 {[%clk 0:03:32.4]} 17... Be6 {[%clk 0:04:28]} 18. g4
{[%clk 0:03:21.9]} 18... Bxd5 {[%clk 0:04:22.7]} 19. exd5 {[%clk 0:03:20.5]}
19... Qa5 {[%clk 0:04:19.1]} 20. Kb1 {[%clk 0:03:18.9]} 20... b3 {[%clk
0:04:18.4]} 21. axb3 {[%clk 0:03:14.1]} 21... Qe1+ {[%clk 0:04:13.8]} 22. Ka2
{[%clk 0:03:12.1]} 22... Rb6 {[%clk 0:04:09.6]} 0-1

[Event "Live Chess"]
[Site "Chess.com"]
[Date "2023.05.20"]
[Round "-"]
[White "OceanFloater"]
[Black "garyjc"]
[Result "1-0"]
[WhiteElo "995"]
[BlackElo "1025"]
[TimeControl "300"]
[EndTime "10:28:37 PDT"]
[Termination "OceanFloater won on time"]

1. e4 {[%clk 0:04:57.4]} 1... c5 {[%clk 0:04:58.5]} 2. a3 {[%clk 0:04:55.6]}
2... d6 {[%clk 0:04:57]} 3. b4 {[%clk 0:04:53.6]} 3... b6 {[%clk 0:04:51.1]} 4.
bxc5 {[%clk 0:04:52.2]} 4... bxc5 {[%clk 0:04:49.8]} 5. Bb5+ {[%clk 0:04:50.1]}
5... Bd7 {[%clk 0:04:47.2]} 6. Bxd7+ {[%clk 0:04:48.5]} 6... Qxd7 {[%clk
0:04:46.2]} 7. Nc3 {[%clk 0:04:47.1]} 7... g6 {[%clk 0:04:44.7]} 8. Nf3 {[%clk
0:04:45.7]} 8... Bg7 {[%clk 0:04:43.2]} 9. a4 {[%clk 0:04:43.9]} 9... Nf6 {[%clk
0:04:41.7]} 10. a5 {[%clk 0:04:39.6]} 10... O-O {[%clk 0:04:38.6]} 11. d3 {[%clk
0:04:34.5]} 11... Nc6 {[%clk 0:04:37.2]} 12. Be3 {[%clk 0:04:26.3]} 12... Ng4
{[%clk 0:04:29.3]} 13. Qd2 {[%clk 0:04:12.1]} 13... Nxe3 {[%clk 0:04:24.2]} 14.
fxe3 {[%clk 0:04:10.6]} 14... Rab8 {[%clk 0:04:18.2]} 15. O-O {[%clk 0:04:08.4]}
15... Nb4 {[%clk 0:04:14.9]} 16. Ra3 {[%clk 0:03:58.4]} 16... Qc7 {[%clk
0:03:54.8]} 17. Nd5 {[%clk 0:03:54.2]} 17... Nxd5 {[%clk 0:03:40.8]} 18. exd5
{[%clk 0:03:51.6]} 18... Rb2 {[%clk 0:03:31.5]} 19. d4 {[%clk 0:03:43.1]} 19...
cxd4 {[%clk 0:03:09]} 20. Nxd4 {[%clk 0:03:41.4]} 20... Qc5 {[%clk 0:02:59.1]}
21. Rc1 {[%clk 0:03:28.1]} 21... Qxa3 {[%clk 0:02:49.6]} 22. Nc6 {[%clk
0:03:21.7]} 22... Bh8 {[%clk 0:02:26.7]} 23. Nxe7+ {[%clk 0:03:15.8]} 23... Kg7
{[%clk 0:02:20.2]} 24. Qd4+ {[%clk 0:03:15.2]} 24... Kh6 {[%clk 0:02:16.9]} 25.
Qh4+ {[%clk 0:03:10.5]} 25... Kg7 {[%clk 0:02:14.9]} 26. Qd4+ {[%clk 0:03:09.6]}
26... Kh6 {[%clk 0:02:13.4]} 27. Qh4+ {[%clk 0:03:07.4]} 27... Kg7 {[%clk
0:02:12.4]} 28. Nc6 {[%clk 0:02:48.1]} 28... Qxe3+ {[%clk 0:02:06.8]} 29. Kh1
{[%clk 0:02:42.5]} 29... Rc8 {[%clk 0:01:52.1]} 30. Re1 {[%clk 0:02:32.5]} 30...
Qd2 {[%clk 0:01:14.4]} 31. Qd4+ {[%clk 0:02:21.7]} 31... Qxd4 {[%clk 0:01:11.8]}
32. Nxd4 {[%clk 0:02:20.8]} 32... Kf8 {[%clk 0:01:06.6]} 33. Nc6 {[%clk
0:02:08.6]} 33... Rxc2 {[%clk 0:00:59.3]} 34. h3 {[%clk 0:02:02.8]} 34... Re8
{[%clk 0:00:51.1]} 35. Rb1 {[%clk 0:01:55.4]} 35... Ree2 {[%clk 0:00:45.8]} 36.
Rb8+ {[%clk 0:01:49]} 36... Kg7 {[%clk 0:00:43.1]} 37. Rb1 {[%clk 0:01:41.7]}
37... Rxg2 {[%clk 0:00:41.3]} 38. Nxa7 {[%clk 0:01:37.3]} 38... Rh2+ {[%clk
0:00:40]} 39. Kg1 {[%clk 0:01:36.1]} 39... Rcg2+ {[%clk 0:00:39.2]} 40. Kf1
{[%clk 0:01:34.9]} 40... Rd2 {[%clk 0:00:32.9]} 41. Kg1 {[%clk 0:01:27]} 41...
Kh6 {[%clk 0:00:28.7]} 42. Nc6 {[%clk 0:01:25.4]} 42... Bd4+ {[%clk 0:00:25.7]}
43. Nxd4 {[%clk 0:01:20.1]} 43... Rxd4 {[%clk 0:00:24.3]} 44. Kxh2 {[%clk
0:01:18.9]} 44... Rxd5 {[%clk 0:00:20.2]} 45. a6 {[%clk 0:01:18.2]} 45... Ra5
{[%clk 0:00:19.1]} 46. Rb6 {[%clk 0:01:16.1]} 46... d5 {[%clk 0:00:17.7]} 47.
Kg2 {[%clk 0:01:14.8]} 47... d4 {[%clk 0:00:16.7]} 48. Kf2 {[%clk 0:01:14.4]}
48... d3 {[%clk 0:00:15.8]} 49. Ke3 {[%clk 0:01:13.5]} 49... Rd5 {[%clk
0:00:12.9]} 50. a7 {[%clk 0:01:11.9]} 50... d2 {[%clk 0:00:11.8]} 51. Rb1 {[%clk
0:01:07.6]} 51... f5 {[%clk 0:00:07.4]} 52. a8=Q {[%clk 0:01:05.6]} 52... f4+
{[%clk 0:00:04.3]} 53. Kxf4 {[%clk 0:01:03.8]} 53... Rf5+ {[%clk 0:00:01.4]} 54.
Ke4 {[%clk 0:01:02.8]} 1-0

[Event "Live Chess"]
[Site "Chess.com"]
[Date "2023.05.20"]
[Round "-"]
[White "Reggie016"]
[Black "bedsdrout"]
[Result "1-0"]
[WhiteElo "1046"]
[BlackElo "417"]
[TimeControl "300"]
[EndTime "10:28:38 PDT"]
[Termination "Reggie016 won by checkmate"]

1. e4 {[%clk 0:04:59.3]} 1... e5 {[%clk 0:04:57.4]} 2. Nc3 {[%clk 0:04:58.5]}
2... Bc5 {[%clk 0:04:54.2]} 3. f4 {[%clk 0:04:58.1]} 3... Qh4+ {[%clk 0:04:48]}
4. g3 {[%clk 0:04:56.9]} 4... Qf6 {[%clk 0:04:38.6]} 5. Nf3 {[%clk 0:04:50]}
5... exf4 {[%clk 0:04:37.2]} 6. d4 {[%clk 0:04:45]} 6... fxg3 {[%clk 0:04:34.9]}
7. dxc5 {[%clk 0:04:39.1]} 7... Nh6 {[%clk 0:04:31.9]} 8. Nd5 {[%clk 0:04:31.6]}
8... O-O {[%clk 0:04:31.4]} 9. Nxf6+ {[%clk 0:04:30.5]} 9... gxf6 {[%clk
0:04:28.9]} 10. Bxh6 {[%clk 0:04:27.3]} 10... Re8 {[%clk 0:04:26]} 11. Bd3
{[%clk 0:04:16.8]} 11... d6 {[%clk 0:04:17.9]} 12. Rg1 {[%clk 0:04:11.1]} 12...
Bh3 {[%clk 0:04:15.7]} 13. Rxg3+ {[%clk 0:04:09.2]} 13... Kh8 {[%clk 0:03:45.7]}
14. Bg7+ {[%clk 0:03:56]} 14... Kg8 {[%clk 0:03:28.1]} 15. Bxf6+ {[%clk
0:03:55.9]} 15... Kf8 {[%clk 0:03:23.9]} 16. Rxh3 {[%clk 0:03:55.8]} 16... Nc6
{[%clk 0:03:18.2]} 17. Rxh7 {[%clk 0:03:54.9]} 17... Nd4 {[%clk 0:03:16.5]} 18.
Rh8# {[%clk 0:03:54]} 1-0

[Event "Live Chess"]
[Site "Chess.com"]
[Date "2023.05.20"]
[Round "-"]
[White "Ninifu"]
[Black "mliszewski"]
[Result "1-0"]
[WhiteElo "1990"]
[BlackElo "1897"]
[TimeControl "300"]
[EndTime "10:28:44 PDT"]
[Termination "Ninifu won by resignation"]

1. d4 {[%clk 0:04:57]} 1... d5 {[%clk 0:04:58.8]} 2. c4 {[%clk 0:04:55.2]} 2...
e5 {[%clk 0:04:57.9]} 3. dxe5 {[%clk 0:04:53.1]} 3... d4 {[%clk 0:04:57.5]} 4.
a3 {[%clk 0:04:51.3]} 4... Nh6 {[%clk 0:04:52.7]} 5. e3 {[%clk 0:04:47.7]} 5...
Nf5 {[%clk 0:04:49.8]} 6. g4 {[%clk 0:04:41.9]} 6... Nh4 {[%clk 0:04:43]} 7.
exd4 {[%clk 0:04:32.1]} 7... Nc6 {[%clk 0:04:40.9]} 8. Be3 {[%clk 0:04:29]} 8...
Be6 {[%clk 0:04:09]} 9. f4 {[%clk 0:04:26.9]} 9... Bxc4 {[%clk 0:03:48.3]} 10.
Bxc4 {[%clk 0:04:24.5]} 10... Ng2+ {[%clk 0:03:46]} 11. Kf2 {[%clk 0:04:19.5]}
11... Nxe3 {[%clk 0:03:39.3]} 12. Kxe3 {[%clk 0:04:17.9]} 12... Qh4 {[%clk
0:03:36]} 13. Qf3 {[%clk 0:04:04.1]} 13... O-O-O {[%clk 0:03:29.2]} 14. Ne2
{[%clk 0:03:36.1]} 14... Nxd4 {[%clk 0:03:05.9]} 15. Nxd4 {[%clk 0:03:34.2]}
15... Bc5 {[%clk 0:03:05]} 16. Rd1 {[%clk 0:03:10.6]} 16... Qxh2 {[%clk
0:03:03.8]} 17. Ba6 {[%clk 0:02:05.7]} 17... Qxb2 {[%clk 0:02:53.2]} 18. Bxb7+
{[%clk 0:01:56.7]} 18... Qxb7 {[%clk 0:02:51.8]} 19. Qxb7+ {[%clk 0:01:55.4]}
19... Kxb7 {[%clk 0:02:50.5]} 20. Ke4 {[%clk 0:01:54.5]} 20... Rd7 {[%clk
0:02:36]} 21. Nc3 {[%clk 0:01:51.6]} 21... Rhd8 {[%clk 0:02:35]} 22. Nb3 {[%clk
0:01:26.3]} 22... Rxd1 {[%clk 0:02:28.3]} 23. Rxd1 {[%clk 0:01:25]} 23... Rxd1
{[%clk 0:02:22.5]} 24. Nxc5+ {[%clk 0:01:23.6]} 24... Kc6 {[%clk 0:02:22]} 25.
Nxd1 {[%clk 0:01:21.8]} 25... Kxc5 {[%clk 0:02:21.2]} 26. f5 {[%clk 0:01:18.8]}
26... c6 {[%clk 0:02:15.9]} 27. Ne3 {[%clk 0:01:15.7]} 27... a5 {[%clk
0:02:14.8]} 28. Nc4 {[%clk 0:01:10.6]} 28... Kxc4 {[%clk 0:02:11.7]} 29. e6
{[%clk 0:01:09.1]} 29... fxe6 {[%clk 0:02:08.8]} 30. fxe6 {[%clk 0:01:07.5]}
30... Kb3 {[%clk 0:02:08.7]} 31. e7 {[%clk 0:01:06.3]} 31... Kxa3 {[%clk
0:02:08.6]} 32. e8=Q {[%clk 0:01:05.2]} 32... c5 {[%clk 0:02:04.7]} 33. Kd3
{[%clk 0:01:02.4]} 33... Kb3 {[%clk 0:02:02.8]} 34. Qb5+ {[%clk 0:00:57.7]}
34... Ka3 {[%clk 0:02:01.6]} 1-0

[Event "Live Chess"]
[Site "Chess.com"]
[Date "2023.05.20"]
[Round "-"]
[White "CheckString"]
[Black "CeladonFish"]
[Result "0-1"]
[WhiteElo "1232"]
[BlackElo "1011"]
[TimeControl "300"]
[EndTime "10:28:47 PDT"]
[Termination "CeladonFish won by resignation"]

1. e4 {[%clk 0:04:58.3]} 1... d6 {[%clk 0:04:59.1]} 2. d4 {[%clk 0:04:55]} 2...
Nf6 {[%clk 0:04:58]} 3. Nc3 {[%clk 0:04:52.6]} 3... g6 {[%clk 0:04:57.2]} 4. Nf3
{[%clk 0:04:41.4]} 4... Bg7 {[%clk 0:04:56]} 5. Bc4 {[%clk 0:04:37.4]} 5... c6
{[%clk 0:04:54.1]} 6. O-O {[%clk 0:04:12.8]} 6... b5 {[%clk 0:04:51.2]} 7. Bb3
{[%clk 0:04:06.8]} 7... a5 {[%clk 0:04:47.9]} 8. a4 {[%clk 0:04:03.2]} 8... b4
{[%clk 0:04:46.6]} 9. Ne2 {[%clk 0:04:00.9]} 9... Nxe4 {[%clk 0:04:45.2]} 10.
Qd3 {[%clk 0:03:47.3]} 10... d5 {[%clk 0:04:43.5]} 11. Ng3 {[%clk 0:03:41.4]}
11... Ba6 {[%clk 0:04:34.8]} 0-1